bitfinex-derivatives/quotes_ETHF0:USTF0_20250110
["timestamp","ask_amount","ask_price","bid_price","bid_amount"]
[1736500863783,3.51016,3307.8,3307.6,0.30237]
[1736500863980,0.30237,3307.7,3307.5,41.10238]
[1736500864185,0.3024,3307.4,3307.2,0.4698]
[1736500864389,0.30239,3307.5,3307.2,0.77221]
[1736500864588,3.51016,3307.8,3307.3,0.3024]
[1736500864785,3.51016,3307.8,3307.5,0.30238]
[1736500864985,3.2078,3307.8,3307.2,43.13573722]
[1736500865191,0.4545,3308.0,3307.7,0.30237]
[1736500865486,0.75684,3308.0,3307.8,0.93]
[1736500865691,0.4545,3308.0,3307.8,0.93]
[1736500865892,3.6623,3308.0,3307.9,0.30235]
[1736500866093,0.4545,3308.0,3307.8,0.93]
[1736500866394,3.6623,3308.0,3307.9,0.30235]
[1736500866589,3.6623,3308.0,3307.8,1.23235]
[1736500866791,0.75684,3308.0,3307.8,1.23235]
[1736500866990,3.96464,3308.0,3307.3,0.3024]
[1736500867192,3.6623,3308.0,3307.5,0.4577]
[1736500867688,0.75684,3308.0,3307.7,0.30236]
[1736500867891,0.30235,3307.9,3307.7,0.30236]
[1736500868190,3.96464,3308.0,3307.7,0.30236]
[1736500868591,3.6623,3308.0,3307.5,0.4577]
[1736500868793,3.96464,3308.0,3307.8,0.30235]
[1736500868992,3.6623,3308.0,3307.5,0.4577]
[1736500869193,0.30235,3307.9,3307.7,0.30236]
[1736500869893,0.30235,3307.9,3307.5,0.4577]
[1736500869894,3.6623,3308.0,3307.5,0.4577]
[1736500870088,3.6623,3308.0,3307.8,0.30235]
[1736500870288,3.96464,3308.0,3307.7,0.30236]
[1736500870987,0.572884,3315.4,3307.8,1.86593722]
[1736500870988,3.2078,3308.9,3307.8,1.86593722]
[1736500871189,0.30227,3308.8,3308.5,0.30229]
[1736500871488,5.07373722,3308.9,3307.9,3.6721]
[1736500871689,0.30233,3308.1,3308.0,0.9135]
[1736500872391,0.3024,3307.3,3307.1,4.68349105]
[1736500872594,3.2078,3307.7,3307.2,0.9137]
[1736500872791,0.30238,3307.6,3307.2,1.2161]
[1736500872994,3.2078,3307.7,3307.2,0.9137]
[1736500873189,0.3024,3307.3,3307.2,0.9137]
[1736500875188,3.51017,3307.7,3307.3,0.30239]
[1736500875388,3.51017,3307.7,3307.3,0.3024]
[1736500875698,3.51017,3307.7,3307.2,2.77963722]
[1736500875699,0.30237,3307.7,3307.4,0.30239]
[1736500875908,3.2078,3307.8,3307.5,0.30238]
[1736500876395,3.2078,3307.8,3307.4,40.8]
[1736500876694,0.3024,3307.4,3307.2,0.9137]
[1736500876901,0.3024,3307.3,3307.2,0.9137]
[1736500877396,0.30239,3307.4,3307.2,0.9137]
[1736500877798,0.4615,3307.6,3307.2,0.9137]
[1736500877992,0.4698,3307.7,3307.4,0.30239]
[1736500878197,0.77217,3307.7,3307.4,0.30239]
[1736500878398,0.4698,3307.7,3307.2,0.9137]
[1736500878587,0.30238,3307.6,3307.2,0.9137]
[1736500878791,0.30238,3307.6,3307.3,0.3024]
[1736500878991,0.30239,3307.5,3307.2,1.21611]
[1736500879197,0.3024,3307.3,3307.0,40.8]
[1736500879395,0.4615,3307.4,3307.0,40.8]
[1736500879593,0.30242,3307.2,3307.0,40.8]
[1736500879790,0.4615,3307.4,3307.0,40.8]
[1736500879987,0.30242,3307.1,3307.0,40.8]
[1736500880598,1.86593722,3307.2,3306.7,0.8877]
[1736500880795,0.30245,3306.8,3306.7,0.8877]
[1736500881097,0.30245,3306.8,3306.1,40.8]
[1736500881098,0.3025,3306.3,3306.1,40.8]
[1736500881289,1.245,3306.8,3305.9,0.77462]
[1736500881290,5.07373722,3306.6,3305.9,0.77462]
[1736500881599,3.51031,3306.2,3305.9,0.4721]
[1736500881796,0.30251,3306.1,3305.9,41.2721]
[1736500881999,3.2078,3306.2,3306.0,1.86593722]
[1736500882187,0.89,3306.7,3306.0,1.86593722]
[1736500882188,3.2078,3306.6,3306.0,1.86593722]
[1736500882392,3.2078,3306.6,3305.9,41.2721]
[1736500882898,3.2078,3306.2,3305.9,41.2721]
[1736500883098,0.4764,3306.1,3305.9,41.2721]
[1736500883300,0.4764,3306.1,3305.9,41.57462]
[1736500883598,0.4764,3306.1,3305.9,41.2721]
[1736500883996,0.4764,3306.1,3305.9,41.57463]
[1736500884300,0.30249,3306.4,3305.9,41.57463]
[1736500884501,0.4764,3306.4,3305.9,41.57463]
[1736500884700,0.4764,3306.4,3305.9,41.2721]
[1736500885197,0.4764,3306.4,3305.9,41.57463]
[1736500885198,0.3025,3306.3,3305.9,41.57463]
[1736500885398,0.77889,3306.4,3305.9,41.57463]
[1736500885596,0.77889,3306.4,3306.0,0.30252]
[1736500885898,0.4764,3306.4,3305.9,41.2721]
[1736500886595,0.30252,3306.1,3305.9,41.2721]
[1736500888004,0.30251,3306.2,3305.9,41.2721]
[1736500888205,0.4764,3306.4,3305.9,41.57463]
[1736500888405,3.2078,3307.0,3306.3,1.86593722]
[1736500888709,3.2078,3307.0,3306.6,0.30246]
[1736500888906,3.2078,3307.0,3306.7,40.8]
[1736500889202,0.30245,3306.8,3306.7,40.8]
[1736500889401,3.2078,3307.0,3306.3,0.30249]
[1736500889606,0.30246,3306.7,3306.3,0.30249]
[1736500889799,0.30245,3306.8,3306.5,0.30247]
[1736500889999,0.30245,3306.8,3306.6,40.8]
[1736500890400,0.30244,3306.9,3306.6,41.10247]
[1736500890902,0.30245,3306.8,3306.6,40.8]
[1736500891403,0.30244,3306.9,3306.6,0.30246]
[1736500891604,0.30244,3306.9,3306.0,5.83004722]
[1736500891909,0.30245,3306.8,3306.1,40.8]
[1736500892311,0.30245,3306.8,3306.2,0.3025]
[1736500892504,0.30245,3306.8,3306.5,0.30247]
[1736500893108,3.51023,3307.0,3306.7,0.30245]
[1736500893309,3.2078,3307.0,3306.8,0.30245]
[1736500894309,3.2078,3307.0,3306.3,1.86593722]
[1736500894505,3.51023,3307.0,3306.8,0.30244]
[1736500895713,3.2078,3307.0,3306.8,0.30244]
[1736500896016,0.30244,3306.9,3306.1,40.8]
[1736500896211,0.30245,3306.8,3306.1,40.8]
[1736500896407,0.30245,3306.8,3306.6,0.30246]
[1736500896608,3.2078,3307.0,3306.7,0.30246]
[1736500896809,0.30244,3306.9,3306.7,0.30246]
[1736500898402,0.30244,3306.9,3306.2,0.75626]
[1736500898610,3.2078,3307.0,3306.8,0.30245]
[1736500898810,0.30244,3306.9,3306.8,0.30244]
[1736500899011,3.51023,3307.0,3306.3,1.86593722]
[1736500899313,3.2078,3307.0,3306.9,0.30244]
[1736500899509,3.2078,3307.0,3306.3,2.62217722]
[1736500899711,0.30244,3306.9,3306.7,0.30245]
[1736500899907,3.2078,3307.0,3306.6,0.9151]
[1736500900212,0.30245,3306.9,3306.7,0.30245]
[1736500900607,3.2078,3307.0,3306.6,0.9151]
[1736500900808,0.30247,3306.6,3306.4,0.30248]
[1736500901004,0.30248,3306.5,3306.3,0.30249]
[1736500901217,0.30253,3306.0,3305.8,0.30253]
[1736500901417,0.30253,3305.9,3305.7,0.30254]
[1736500901715,0.30252,3306.0,3305.8,0.30254]
[1736500902111,4.1011,3306.4,3305.6,4.1238]
[1736500902417,0.30253,3305.9,3305.7,0.30255]
[1736500902711,3.51033,3306.0,3305.7,0.30255]
[1736500902917,3.2078,3306.0,3305.6,0.916]
[1736500903314,3.2078,3306.6,3305.7,1.86593722]
[1736500903618,3.2078,3306.6,3306.1,1.86593722]
[1736500903821,3.2078,3306.2,3305.8,1.86593722]
[1736500904018,3.2078,3306.2,3306.0,0.30252]
[1736500904623,3.51031,3306.2,3305.9,0.30252]
[1736500904814,0.30251,3306.1,3305.9,0.30252]
[1736500905015,3.2078,3306.2,3305.9,0.30252]
[1736500905219,3.2078,3306.2,3305.6,0.916]
[1736500905420,3.2078,3306.2,3306.1,0.30251]
[1736500905717,0.30252,3306.0,3305.7,0.30254]
[1736500906114,0.30252,3306.0,3305.6,0.916]
[1736500906115,0.30253,3305.9,3305.6,1.21855]
[1736500906517,0.9153,3306.1,3305.6,0.916]
[1736500906821,0.30254,3305.8,3305.6,0.916]
[1736500907422,0.9153,3306.1,3305.6,0.916]
[1736500907623,0.30252,3306.0,3305.7,40.8]
[1736500907916,0.30252,3306.0,3305.7,41.10255]
[1736500908520,0.9153,3306.1,3305.7,40.8]
[1736500908920,0.9153,3306.1,3305.7,41.10254]
[1736500909411,0.30252,3306.0,3305.7,41.10254]
[1736500909613,0.9153,3306.1,3305.7,41.10254]
[1736500909816,0.30253,3305.9,3305.7,40.8]
[1736500910017,0.9153,3306.1,3305.7,40.8]
[1736500910709,0.9153,3306.1,3305.7,41.10254]
[1736500910917,0.30253,3305.9,3305.7,40.8]
[1736500911317,0.30253,3305.9,3305.7,41.10255]
[1736500911522,0.30253,3305.9,3305.7,0.30255]
[1736500911721,0.30253,3305.9,3305.6,1.21855]
[1736500912422,0.9153,3306.1,3305.6,0.916]
[1736500912617,0.30253,3306.0,3305.6,1.21855]
[1736500912923,0.9153,3306.1,3305.6,0.916]
[1736500913222,0.30258,3305.4,3305.1,0.3026]
[1736500913409,3.2078,3305.7,3305.1,0.9233]
[1736500913615,3.2078,3305.7,3305.2,40.8]
[1736500914016,3.51036,3305.7,3305.3,0.30258]
[1736500914517,0.30256,3305.6,3305.3,0.30258]
[1736500914725,3.2078,3305.7,3305.6,0.30256]
[1736500915220,3.2078,3305.7,3305.1,0.9233]
[1736500915525,0.30256,3305.6,3305.1,0.9233]
[1736500915822,3.2078,3305.7,3305.3,0.30258]
[1736500916127,0.30256,3305.6,3305.3,0.30258]
[1736500916520,3.2078,3305.7,3305.1,0.9233]
[1736500916726,1.233,3305.8,3305.7,0.30255]
[1736500917222,3.2078,3306.1,3306.0,0.30252]
[1736500917427,3.2078,3306.1,3306.0,41.10252]
[1736500918926,3.51031,3306.1,3306.0,40.8]
[1736500919121,3.2078,3306.1,3306.0,41.10252]
[1736500919326,3.2078,3306.1,3306.0,40.8]
[1736500919828,3.6664,3306.1,3306.0,40.8]
[1736500920217,3.6664,3306.1,3305.8,0.30254]
[1736500920419,4.1412,3306.1,3305.7,0.9225]
[1736500920624,4.1412,3306.1,3305.9,0.30253]
[1736500922027,4.1412,3306.1,3306.0,0.30252]
[1736500922227,4.1412,3306.1,3305.9,0.30252]
[1736500922527,4.1412,3306.1,3305.7,41.7225]
[1736500922725,4.1412,3306.1,3306.0,0.30252]
[1736500924027,3.2078,3306.1,3306.0,0.30252]
[1736500925122,0.9273,3306.5,3305.9,1.86593722]
[1736500925123,0.9273,3306.5,3306.3,0.30249]
[1736500925324,0.9273,3306.5,3306.4,0.30248]
[1736500925625,3.2078,3307.1,3307.0,0.30243]
[1736500926125,3.6668,3307.9,3307.6,0.30237]
[1736500926430,3.6668,3307.9,3307.3,1.86593722]
[1736500926631,3.6668,3307.9,3307.5,0.30238]
[1736500926829,3.6668,3307.9,3307.4,41.7173]
[1736500927025,3.6668,3307.9,3307.7,0.30236]
[1736500927332,3.6668,3307.9,3307.8,0.30236]
[1736500927931,3.6668,3307.9,3307.4,41.7173]
[1736500928129,3.6668,3307.9,3307.7,0.30236]
[1736500929128,3.6668,3307.9,3307.4,41.7173]
[1736500929323,3.6668,3307.9,3307.7,0.30236]
[1736500929930,3.6668,3307.9,3307.4,41.7173]
[1736500930134,3.6668,3307.9,3307.8,0.30236]
[1736500931743,3.2078,3307.9,3307.8,0.30236]
[1736500932034,0.9109,3308.5,3308.3,0.30231]
[1736500932035,4.1187,3308.5,3308.3,0.30231]
[1736500932235,4.1187,3308.5,3308.4,0.3023]
[1736500932438,3.2078,3308.5,3308.4,0.3023]
[1736500934532,3.2078,3308.5,3308.3,0.3023]
[1736500934737,3.2078,3308.5,3308.4,0.3023]
[1736500936345,3.51009,3308.5,3308.3,0.30231]
[1736500936537,0.30233,3308.1,3307.7,0.30237]
[1736500936740,0.30235,3307.9,3307.7,0.30236]
[1736500936938,0.30235,3307.9,3307.7,0.30237]
[1736500937444,0.30234,3308.0,3307.7,0.30237]
[1736500938745,0.30234,3308.0,3307.6,1.86593722]
[1736500939145,0.30234,3308.0,3307.6,2.16830722]
[1736500939344,0.30234,3308.0,3307.6,1.86593722]
[1736500939547,3.51013,3308.1,3307.7,0.30236]
[1736500939941,3.2078,3308.1,3307.8,0.30235]
[1736500940149,0.30234,3308.0,3307.7,0.30236]
[1736500940847,3.51013,3308.1,3307.8,0.30236]
[1736500941243,3.51013,3308.1,3307.6,1.86593722]
[1736500941548,3.51013,3308.1,3307.7,0.30236]
[1736500941843,3.51013,3308.1,3307.7,0.30237]
[1736500942050,3.51013,3308.1,3307.8,0.30235]
[1736500942345,0.916,3308.3,3308.0,0.30234]
[1736500942547,1.21831,3308.3,3308.1,40.8]
[1736500942753,1.21831,3308.3,3308.0,0.30234]
[1736500942942,3.51012,3308.2,3307.9,0.30234]
[1736500943342,0.4574,3308.1,3307.6,1.86593722]
[1736500943647,0.4574,3308.1,3307.7,0.30236]
[1736500943850,0.30234,3308.0,3307.7,0.30236]
[1736500944048,0.4574,3308.1,3307.6,1.86593722]
[1736500944249,0.4574,3308.1,3307.9,0.30235]
[1736500944550,0.4574,3308.1,3307.6,1.86593722]
[1736500944849,0.75973,3308.1,3307.8,0.30235]
[1736500945036,0.75973,3308.1,3307.6,1.86593722]
[1736500945245,0.4574,3308.1,3307.9,0.30235]
[1736500945647,0.4574,3308.1,3307.9,0.30234]
[1736500945841,0.4574,3308.1,3308.0,0.30234]
[1736500946149,4.74309,3308.6,3308.3,0.30231]
[1736500946345,0.74569,3308.5,3308.3,0.30231]
[1736500947351,0.74569,3308.5,3307.9,1.86593722]
[1736500947552,0.4434,3308.5,3308.4,0.3023]
[1736500947756,0.74569,3308.5,3308.4,0.3023]
[1736500948047,0.4434,3308.5,3307.9,1.86593722]
[1736500948253,0.3023,3308.4,3308.3,0.30231]
[1736500948557,0.3023,3308.4,3307.6,0.4674]
[1736500948558,0.4434,3308.5,3307.6,1.86593722]
[1736500948850,0.4434,3308.5,3308.0,0.30233]
[1736500949446,0.30233,3308.2,3308.0,0.30233]
[1736500949751,0.30233,3308.1,3308.0,0.30233]
[1736500949950,3.2078,3308.2,3308.0,0.30233]
[1736500950152,0.4434,3308.5,3307.9,1.86593722]
[1736500950355,0.3023,3308.4,3308.3,0.30231]
[1736500950647,0.3023,3308.4,3307.9,1.86593722]
[1736500950849,3.2078,3308.2,3307.5,41.703]
[1736500951040,0.30234,3308.0,3307.9,0.30235]
[1736500951246,0.30234,3308.0,3307.8,0.30235]
[1736500951441,0.8773,3308.1,3308.0,0.30234]
[1736500951650,1.17963,3308.1,3308.0,0.30234]
[1736500952057,0.4434,3308.5,3308.0,1.86593722]
[1736500952349,0.4434,3308.5,3308.4,0.3023]
[1736500954051,0.30231,3308.4,3308.3,0.3023]
[1736500955249,0.4434,3308.5,3308.1,0.913]
[1736500955454,0.3023,3308.4,3308.2,0.30232]
[1736500955653,0.4434,3308.5,3308.1,0.913]
[1736500955863,0.3023,3308.4,3308.3,0.3023]
[1736500956157,0.4434,3308.5,3308.4,0.3023]
[1736500956659,0.74569,3308.5,3308.4,0.3023]
[1736500956844,0.30231,3308.4,3308.1,0.913]
[1736500957048,0.30231,3308.4,3308.3,0.30231]
[1736500957451,0.7457,3308.5,3308.4,0.3023]
[1736500957655,0.4434,3308.5,3308.4,0.3023]
[1736500958254,3.2078,3308.6,3308.1,0.913]
[1736500958557,0.3023,3308.5,3308.1,0.913]
[1736500958751,3.6427,3308.6,3308.1,0.913]
[1736500959061,3.6427,3308.6,3307.4,5.07373722]
[1736500959062,3.2078,3308.2,3307.4,5.07373722]
[1736500959245,0.30234,3308.0,3307.8,0.30235]
[1736500959450,0.30234,3308.0,3307.5,41.6928]
[1736500959644,0.4353,3308.0,3307.5,41.6928]
[1736500959957,0.30236,3307.8,3307.6,0.30237]
[1736500961452,0.30236,3307.8,3307.5,1.19518]
[1736500961756,0.4353,3308.0,3307.5,1.19518]
[1736500961757,0.30237,3307.7,3307.5,1.19518]
[1736500961959,0.4353,3308.0,3307.5,0.8928]
[1736500962257,0.30236,3307.8,3307.6,0.30237]
[1736500963047,3.2078,3307.8,3307.1,40.8]
[1736500963253,0.30239,3307.5,3307.2,0.3024]
[1736500963452,0.30239,3307.4,3307.2,0.30241]
[1736500963654,3.2078,3307.8,3307.2,0.30241]
[1736500963961,0.3024,3307.4,3307.1,41.97382]
[1736500964160,3.2078,3307.8,3307.1,41.6714]
[1736500964455,0.30239,3307.4,3307.2,0.30241]
[1736500964859,0.30239,3307.5,3307.2,0.30241]
[1736500966456,0.30238,3307.6,3307.4,0.30239]
[1736500966657,0.30238,3307.6,3307.5,0.30238]
[1736500966853,0.30238,3307.5,3307.4,0.30239]
[1736500967159,3.2078,3307.8,3307.1,41.6714]
[1736500967453,0.30238,3307.6,3307.5,0.30238]
[1736500967654,0.30237,3307.6,3307.5,0.30238]
[1736500968455,0.30238,3307.6,3307.5,0.30238]
[1736500969161,3.2078,3307.8,3307.1,41.6714]
[1736500969462,0.30238,3307.6,3307.5,0.30238]
[1736500970660,0.30238,3307.6,3307.4,0.30239]
[1736500970859,0.30238,3307.6,3307.5,0.30238]
[1736500971060,0.30238,3307.6,3307.1,41.6714]
[1736500971663,0.30237,3307.7,3307.4,0.30239]
[1736500971856,0.30238,3307.6,3307.4,0.30239]
[1736500973061,3.2078,3307.8,3307.4,0.30239]
[1736500973261,0.30238,3307.6,3307.4,0.30239]
[1736500974263,3.2078,3307.8,3307.1,41.6714]
[1736500974451,3.2078,3307.8,3307.4,0.30239]
[1736500974651,0.30237,3307.6,3307.4,0.30239]
[1736500974955,0.30237,3307.6,3307.1,41.6714]
[1736500975155,0.30237,3307.6,3307.4,0.30239]
[1736500975955,0.30237,3307.6,3307.3,0.3024]
[1736500976158,0.4662,3307.5,3307.3,0.3024]
[1736500976564,0.4662,3307.5,3307.4,0.30239]
[1736500977867,0.4662,3307.5,3307.3,0.30239]
[1736500978167,0.8989,3307.5,3307.1,41.6714]
[1736500978568,0.8989,3307.5,3307.4,0.30239]
[1736500979663,0.4662,3307.5,3307.4,0.30239]
[1736500980462,0.30237,3307.7,3307.5,0.30238]
[1736500980662,0.30237,3307.6,3307.4,0.30239]
[1736500981067,3.2078,3307.8,3307.1,41.6714]
[1736500981270,0.30237,3307.7,3307.6,0.30237]
[1736500981465,3.2078,3307.8,3307.1,41.6714]
[1736500981770,3.2078,3308.5,3307.6,2.62187722]
[1736500982065,3.2078,3308.5,3308.4,2.16823722]
[1736500982664,1.3337,3309.1,3308.4,42.66593722]
[1736500982964,0.30225,3309.0,3308.6,0.30228]
[1736500983172,1.63594,3309.1,3308.6,0.30228]
[1736500983468,0.30225,3309.0,3308.8,0.30226]
[1736500983665,1.3337,3309.1,3308.8,0.30226]
[1736500983869,1.3337,3309.1,3308.5,0.8988]
[1736500984171,1.3337,3309.1,3308.9,0.30225]
[1736500984376,3.2078,3309.2,3309.1,0.30224]
[1736500984566,3.2078,3309.2,3308.7,1.86593722]
[1736500984760,3.2078,3309.2,3308.5,0.8988]
[1736500984963,0.4494,3309.1,3308.5,0.8988]
[1736500985168,0.75164,3309.1,3308.7,0.30227]
[1736500985368,0.4494,3309.1,3308.9,0.30226]
[1736500985570,0.75164,3309.1,3308.6,0.30228]
[1736500985770,0.75164,3309.1,3308.8,0.30226]
[1736500986275,0.30225,3309.0,3308.7,0.30227]
[1736500986774,0.30226,3308.9,3308.6,0.30228]
[1736500987072,1.22055,3309.0,3308.7,0.30227]
[1736500987282,0.30226,3308.9,3308.5,0.8988]
[1736500987570,0.30227,3308.8,3308.5,0.8988]
[1736500987767,0.30228,3308.7,3308.5,0.8988]
[1736500988171,0.9183,3309.0,3308.5,0.8988]
[1736500988369,1.22055,3309.0,3308.6,0.30228]
[1736500988570,0.30226,3308.9,3308.6,0.30228]
[1736500989171,1.22055,3309.0,3308.7,0.30227]
[1736500989471,0.4494,3309.1,3308.5,0.8988]
[1736500989975,3.2078,3309.2,3309.0,0.30225]
[1736500990472,3.2078,3309.2,3309.1,0.73444]
[1736500990867,3.2078,3309.2,3309.1,0.4322]
[1736500993577,0.30222,3309.3,3309.1,0.4322]
[1736500993779,0.30222,3309.3,3309.1,0.73444]
[1736500993972,0.30222,3309.3,3309.1,0.4322]
[1736500994374,3.2078,3309.4,3309.1,0.4322]
[1736500994570,3.2078,3309.4,3309.1,0.73443]
[1736500994776,3.2078,3309.4,3309.3,0.30222]
[1736500995072,0.431,3309.7,3309.6,0.30219]
[1736500995882,14.41426,3310.0,3309.7,0.30218]
[1736500996180,14.1121,3310.0,3309.8,0.30217]
[1736500996478,14.1121,3310.0,3309.4,40.8]
[1736500997170,14.1121,3310.0,3309.9,0.30216]
[1736500997371,13.6383,3310.0,3309.9,0.30216]
[1736500997576,13.6383,3310.0,3309.6,1.86593722]
[1736500997773,13.94046,3310.0,3309.8,0.30217]
[1736500998575,13.6383,3310.0,3309.7,0.4723]
[1736500998782,13.6383,3310.0,3309.9,0.30216]
[1736500998976,13.6383,3310.0,3309.7,0.4723]
[1736500999183,0.3022,3309.5,3309.3,0.75832]
[1736500999382,0.3022,3309.6,3309.4,0.30221]
[1736500999576,0.30221,3309.4,3309.3,0.9278]
[1736501000081,0.30221,3309.4,3309.2,0.30223]
[1736501000281,1.1694,3309.5,3309.2,0.30223]
[1736501000681,0.30221,3309.4,3309.2,0.30223]
[1736501001180,1.16941,3309.5,3309.2,0.30223]
[1736501001380,0.8672,3309.5,3309.1,0.9334]
[1736501002085,3.2078,3309.6,3309.3,1.86593722]
[1736501002286,3.2078,3309.6,3309.5,0.3022]
[1736501005289,10.0,3310.0,3309.9,0.30216]
[1736501005579,1.65973,3311.4,3311.0,0.30206]
[1736501005782,1.3577,3311.4,3310.5,5.07373722]
[1736501006088,0.30204,3311.3,3310.9,0.30207]
[1736501006383,0.30204,3311.3,3310.5,5.07373722]
[1736501006384,1.3577,3311.4,3311.0,0.30206]
[1736501006785,0.30204,3311.3,3311.0,0.30206]
[1736501007084,0.30205,3311.2,3310.9,0.30207]
[1736501007279,0.30205,3311.2,3310.9,41.10207]
[1736501007684,0.30204,3311.3,3311.0,0.30206]
[1736501007985,1.3577,3311.4,3311.1,1.86593722]
[1736501008180,0.4726,3311.4,3311.3,3.50984]
[1736501008379,1.3308,3312.0,3311.3,3.2078]
[1736501008578,0.302,3311.8,3311.4,0.30202]
[1736501008779,3.2078,3312.7,3311.7,1.86593722]
[1736501009078,3.2078,3312.7,3311.7,5.07373722]
[1736501009278,0.30193,3312.5,3311.8,0.30199]
[1736501009473,0.30193,3312.5,3312.0,0.30197]
[1736501009974,0.30194,3312.4,3312.0,0.30197]
[1736501010179,0.30196,3312.2,3311.8,0.30199]
[1736501010377,0.30197,3312.1,3311.6,0.302]
[1736501010583,0.30197,3312.1,3311.4,1.86593722]
[1736501010875,1.3245,3312.3,3311.8,0.30199]
[1736501010876,0.30196,3312.2,3311.8,0.30199]
[1736501011080,0.30196,3312.1,3311.7,0.302]
[1736501011378,1.3245,3312.3,3311.7,1.86593722]
[1736501011879,1.3245,3312.3,3311.9,0.30198]
[1736501012092,0.30196,3312.2,3311.8,0.30199]
[1736501012281,1.3245,3312.3,3311.7,1.86593722]
[1736501012487,0.30196,3312.2,3311.8,0.30198]
[1736501012788,1.3245,3312.3,3311.7,2.16793722]
[1736501012988,1.62645,3312.3,3311.8,0.30199]
[1736501013190,1.3245,3312.3,3311.8,0.30199]
[1736501013481,1.62645,3312.3,3311.7,5.07373722]
[1736501013686,1.3245,3312.3,3311.7,5.07373722]
[1736501014086,1.62645,3312.3,3311.9,0.30197]
[1736501014280,1.3245,3312.3,3311.7,5.07373722]
[1736501014483,0.30195,3312.2,3311.7,3.2078]
[1736501014782,0.30198,3311.9,3311.7,3.2078]
[1736501014984,0.302,3311.7,3311.4,1.86593722]
[1736501015183,0.8718,3311.6,3311.4,1.86593722]
[1736501015483,0.8718,3311.6,3311.3,3.2078]
[1736501015683,0.8718,3311.6,3311.3,3.50983]
[1736501016581,0.30202,3311.5,3311.3,3.2078]
[1736501017089,0.8718,3311.6,3311.3,3.2078]
[1736501017488,1.17381,3311.6,3311.3,3.2078]
[1736501017689,0.8718,3311.6,3311.3,3.50983]
[1736501017891,0.8718,3311.6,3311.3,3.2078]
[1736501018085,0.76202,3311.5,3311.3,3.2078]
[1736501018283,0.76202,3311.5,3310.8,2.16800722]
[1736501018284,0.30203,3311.4,3310.8,2.16800722]
[1736501018589,3.6678,3311.5,3310.8,2.16801722]
[1736501018590,0.30205,3311.2,3310.8,2.16801722]
[1736501018985,0.30205,3311.2,3310.9,41.10207]
[1736501019184,0.30204,3311.3,3310.9,41.10207]
[1736501019391,0.30206,3311.1,3310.9,40.8]
[1736501019591,0.30206,3311.0,3310.9,40.8]
[1736501020285,5.53373722,3311.5,3310.3,1.86593722]
[1736501020486,0.30209,3310.8,3310.4,0.30211]
[1736501020680,0.8985,3310.9,3310.3,1.86593722]
[1736501020988,0.30212,3310.4,3310.0,0.30215]
[1736501021289,3.2078,3310.6,3310.1,0.30214]
[1736501021491,3.2078,3310.6,3310.3,0.30212]
[1736501021686,3.50991,3310.6,3310.2,2.16806722]
[1736501021989,0.30211,3310.5,3310.2,1.86593722]
[1736501022180,3.2078,3310.6,3310.2,2.16806722]
[1736501022486,0.30211,3310.5,3310.2,1.86593722]
[1736501023287,0.73358,3310.8,3310.3,0.30213]
[1736501023490,0.73358,3310.8,3310.2,5.07373722]
[1736501023491,0.4315,3310.8,3310.2,5.07373722]
[1736501023690,0.4315,3310.8,3310.6,0.3021]
[1736501023990,0.4315,3310.8,3310.5,1.86593722]
[1736501024182,0.8985,3310.9,3310.8,0.30208]
[1736501024387,0.8985,3310.9,3310.7,0.30209]
[1736501024587,0.8985,3310.9,3310.5,1.86593722]
[1736501025083,0.8985,3310.9,3310.8,1.86593722]
[1736501025282,1.23,3311.1,3311.0,0.30206]
[1736501025489,0.4674,3311.3,3311.2,0.30205]
[1736501025994,3.2078,3311.4,3311.2,40.8]
[1736501026190,3.2078,3311.4,3311.3,0.30204]
[1736501027081,0.8876,3311.9,3311.1,1.86593722]
[1736501027082,0.8876,3311.9,3311.6,0.302]
[1736501027280,0.30199,3311.8,3311.5,0.30201]
[1736501027488,0.8876,3311.9,3311.4,0.30202]
[1736501027489,0.302,3311.7,3311.4,0.30202]
[1736501028395,0.8876,3311.9,3311.3,0.30203]
[1736501028596,0.30201,3311.7,3311.3,0.30204]
[1736501028891,1.18959,3311.9,3311.6,0.302]
[1736501029189,0.8876,3311.9,3311.2,40.8]
[1736501029391,0.8876,3311.9,3311.4,5.07373722]
[1736501029792,0.302,3311.8,3311.4,5.07373722]
[1736501029991,1.18959,3311.9,3311.6,0.302]
[1736501030293,0.8876,3311.9,3311.7,0.302]
[1736501030486,1.18959,3311.9,3311.6,0.30201]
[1736501030993,0.8876,3311.9,3311.7,0.302]
[1736501031184,0.433,3311.9,3311.4,5.07373722]
[1736501031385,0.433,3311.9,3311.8,0.30199]
[1736501031791,3.97496,3312.2,3311.5,0.4664]
[1736501031792,3.673,3312.2,3311.5,0.4664]
[1736501031993,4.1261,3312.2,3311.7,1.86593722]
[1736501032290,0.30197,3312.1,3311.8,0.30199]
[1736501032503,3.6609,3312.2,3311.7,1.86593722]
[1736501032794,0.4531,3312.2,3312.1,0.30196]
[1736501034098,3.6733,3312.6,3312.0,1.86593722]
[1736501034402,3.6733,3312.6,3312.4,0.30193]
[1736501034999,3.2078,3312.6,3312.5,0.30193]
[1736501035199,0.30193,3312.5,3312.2,0.30195]
[1736501035404,3.50972,3312.6,3312.3,0.30194]
[1736501035907,3.50972,3312.6,3312.0,1.86593722]
[1736501035908,3.2078,3312.6,3312.0,1.86593722]
[1736501036104,3.2078,3312.6,3312.1,0.30196]